bitfinex/quotes_BTCUSD_20241025
["timestamp","ask_amount","ask_price","bid_price","bid_amount"]
[1729899843556,0.07177063,66330.0,66329.0,0.01140145]
[1729899843796,0.02524144,66330.0,66329.0,0.31266826]
[1729899844283,0.02524144,66330.0,66329.0,0.00640145]
[1729899844504,0.17600244,66330.0,66329.0,0.00440145]
[1729899845407,0.17600244,66330.0,66329.0,0.16190526]
[1729899845408,0.02524144,66330.0,66329.0,0.16190526]
[1729899845646,0.02524144,66330.0,66329.0,0.34016029]
[1729899845873,0.001642,66330.0,66329.0,0.34216029]
[1729899846111,0.001642,66330.0,66329.0,0.77857713]
[1729899846792,0.001642,66330.0,66329.0,0.60176826]
[1729899847015,0.001642,66330.0,66329.0,0.40206826]
[1729899847955,0.001642,66330.0,66329.0,0.16190526]
[1729899848176,0.152403,66330.0,66329.0,0.00640145]
[1729899849062,0.21352658,66330.0,66329.0,0.00640145]
[1729899849282,0.152403,66330.0,66329.0,0.00640145]
[1729899849999,0.001642,66330.0,66329.0,0.00640145]
[1729899850662,0.001642,66330.0,66329.0,0.32568331]
[1729899850857,0.001642,66330.0,66329.0,0.17190526]
[1729899851088,0.001642,66330.0,66329.0,0.32266826]
[1729899851577,0.001642,66330.0,66329.0,0.17190526]
[1729899851800,0.001642,66330.0,66329.0,0.32266826]
[1729899852505,0.001642,66330.0,66329.0,0.40406826]
[1729899855293,0.001642,66330.0,66329.0,0.40606826]
[1729899855520,0.001642,66330.0,66329.0,0.41005968]
[1729899858522,0.001642,66330.0,66329.0,0.40605968]
[1729899858777,0.001642,66330.0,66329.0,0.41005968]
[1729899859032,0.001642,66330.0,66329.0,0.51680273]
[1729899860504,0.22585429,66347.0,66329.0,0.51680273]
[1729899860505,0.22585429,66347.0,66346.0,0.02340145]
[1729899860738,0.22585429,66347.0,66346.0,0.17212545]
[1729899861180,0.150701,66357.0,66354.0,0.01140145]
[1729899861633,0.37818429,66362.0,66361.0,0.00640145]
[1729899862065,0.15233,66362.0,66361.0,0.00640145]
[1729899862799,0.301387,66360.0,66353.0,0.00440145]
[1729899863024,0.47605121,66362.0,66348.0,0.0009858]
[1729899863025,0.150718,66349.0,66348.0,0.0009858]
[1729899863253,0.301427,66351.0,66346.0,0.22585429]
[1729899863254,0.15072,66348.0,66346.0,0.22585429]
[1729899863479,0.15072,66348.0,66347.0,0.00440145]
[1729899863942,0.30803684,66348.0,66347.0,0.00440145]
[1729899864187,0.30803684,66348.0,66347.0,0.00640145]
[1729899865340,0.30803684,66348.0,66347.0,0.00440145]
[1729899865998,0.30803684,66348.0,66347.0,0.00640145]
[1729899866465,0.30803684,66348.0,66347.0,0.00440145]
[1729899867096,0.39226586,66348.0,66347.0,0.00440145]
[1729899867315,0.47236586,66348.0,66347.0,0.00440145]
[1729899868209,0.38813684,66348.0,66347.0,0.00640145]
[1729899868428,0.38813684,66348.0,66347.0,0.00440145]
[1729899868641,0.43452583,66348.0,66347.0,0.00440145]
[1729899868905,0.43452583,66348.0,66347.0,0.00640145]
[1729899869129,0.43452583,66348.0,66347.0,0.00440145]
[1729899869572,0.43452583,66348.0,66340.0,0.00440145]
[1729899869573,0.1961,66345.0,66340.0,0.00440145]
[1729899869788,0.30805284,66341.0,66340.0,0.00440145]
[1729899870001,0.30805284,66341.0,66340.0,0.00640145]
[1729899870503,0.35448517,66341.0,66340.0,0.00640145]
[1729899870723,0.150736,66341.0,66340.0,0.00640145]
[1729899870967,0.19717986,66341.0,66340.0,0.00440145]
[1729899871191,0.150736,66341.0,66340.0,0.00440145]
[1729899871432,0.19721549,66341.0,66340.0,0.00440145]
[1729899871656,0.150736,66341.0,66340.0,0.00440145]
[1729899871880,0.152378,66341.0,66340.0,0.00440145]
[1729899872544,0.42056652,66341.0,66340.0,0.00440145]
[1729899872799,0.1988819,66341.0,66340.0,0.00640145]
[1729899874153,0.35619874,66341.0,66340.0,0.00640145]
[1729899875048,0.35619874,66341.0,66340.0,0.00440145]
[1729899875506,0.35619874,66341.0,66340.0,0.00640145]
[1729899877765,0.35619874,66341.0,66340.0,0.00440145]
[1729899878014,0.35619874,66341.0,66340.0,0.00640145]
[1729899880136,0.35619874,66341.0,66340.0,0.00440145]
[1729899881563,0.301492,66337.0,66330.0,0.00440145]
[1729899881798,0.301492,66337.0,66327.0,0.0009901]
[1729899881799,0.150756,66332.0,66331.0,0.00440145]
[1729899882059,0.150756,66332.0,66327.0,0.0009901]
[1729899882060,0.0755,66329.0,66327.0,0.0009901]
[1729899882291,0.150772,66325.0,66323.0,0.00440145]
[1729899882511,0.34777971,66325.0,66319.0,0.23025574]
[1729899882758,0.53057971,66325.0,66319.0,0.23025574]
[1729899883040,0.53057971,66325.0,66319.0,0.00440145]
[1729899883304,0.53057971,66325.0,66318.0,0.0009893]
[1729899883516,0.85021339,66325.0,66317.0,0.000852]
[1729899883745,0.85021339,66325.0,66317.0,0.00525345]
[1729899883968,0.85021339,66325.0,66317.0,0.000852]
[1729899884418,0.96177969,66325.0,66317.0,0.000852]
[1729899884663,1.0007172,66325.0,66317.0,0.000852]
[1729899884911,1.0762172,66325.0,66317.0,0.000852]
[1729899885142,0.81640484,66318.0,66317.0,0.000852]
[1729899885372,0.31311584,66313.0,66312.0,0.000852]
[1729899885596,0.51012355,66313.0,66312.0,0.000852]
[1729899885841,0.62156343,66313.0,66312.0,0.000852]
[1729899886104,0.61656343,66313.0,66312.0,0.000852]
[1729899886360,0.51012355,66313.0,66312.0,0.000852]
[1729899886609,0.74971879,66313.0,66312.0,0.000852]
[1729899887092,0.76371879,66313.0,66312.0,0.001852]
[1729899887330,0.74971879,66313.0,66312.0,0.000852]
[1729899887575,0.72742246,66313.0,66312.0,0.000852]
[1729899888064,0.72742246,66313.0,66300.0,0.00525345]
[1729899888065,0.150825,66302.0,66300.0,0.00525345]
[1729899888305,0.66246639,66302.0,66300.0,0.000852]
[1729899889515,0.61596249,66302.0,66300.0,0.000852]
[1729899889971,0.662238,66302.0,66300.0,0.000852]
[1729899890427,0.61596249,66302.0,66300.0,0.000852]
[1729899890679,0.73080777,66302.0,66300.0,0.000852]
[1729899890894,0.41617409,66302.0,66300.0,0.000852]
[1729899891159,0.46545868,66302.0,66300.0,0.000852]
[1729899892076,0.86596249,66302.0,66300.0,0.000852]
[1729899892304,0.61596249,66302.0,66300.0,0.000852]
[1729899894864,0.61985525,66302.0,66300.0,0.000852]
[1729899895084,0.71250438,66302.0,66300.0,0.000852]
[1729899898057,0.71750438,66302.0,66300.0,0.000852]
[1729899898313,0.98400438,66302.0,66300.0,0.000852]
[1729899900341,0.98400438,66302.0,66301.0,0.002853]
[1729899900588,0.98400438,66302.0,66301.0,0.000853]
[1729899900803,0.6693707,66302.0,66301.0,0.000853]
[1729899901030,0.337125,66302.0,66301.0,0.00525445]
[1729899901309,0.30814184,66302.0,66301.0,0.00525445]
[1729899901528,0.30814184,66302.0,66301.0,0.002853]
[1729899901770,0.30814184,66302.0,66301.0,0.000853]
[1729899902017,0.46545868,66302.0,66301.0,0.000853]
[1729899902265,0.56525358,66302.0,66301.0,0.000853]
[1729899903176,0.72075739,66302.0,66301.0,0.000853]
[1729899903413,0.405831,66299.0,66298.0,0.000853]
[1729899903636,0.55633481,66299.0,66298.0,0.000853]
[1729899903857,0.60704372,66299.0,66298.0,0.000853]
[1729899904560,0.60804372,66299.0,66298.0,0.000853]
[1729899904782,0.60804372,66299.0,66281.0,0.000853]
[1729899904783,0.350754,66289.0,66281.0,0.00525445]
[1729899905026,0.3966266,66289.0,66281.0,0.00525445]
[1729899905283,0.3966266,66289.0,66281.0,0.000853]
[1729899905284,0.46550368,66282.0,66281.0,0.000853]
[1729899905526,0.87100749,66282.0,66281.0,0.000853]
[1729899905743,0.62100749,66282.0,66281.0,0.000853]
[1729899906197,0.15087,66282.0,66281.0,0.00525445]
[1729899906415,0.30818684,66282.0,66281.0,0.00525445]
[1729899906873,0.15087,66282.0,66281.0,0.00725445]
[1729899907347,0.15087,66282.0,66281.0,0.01225445]
[1729899908041,0.22585429,66287.0,66281.0,0.01225445]
[1729899908042,0.150866,66284.0,66283.0,0.00640145]
[1729899909041,0.15087,66282.0,66281.0,0.000853]
[1729899909472,0.66540368,66282.0,66281.0,0.000853]
[1729899909924,0.82090749,66282.0,66281.0,0.000853]
[1729899910168,0.39696856,66282.0,66281.0,0.000853]
[1729899910389,0.15087,66282.0,66281.0,0.000853]
[1729899910613,0.15087,66282.0,66281.0,0.00525445]
[1729899910614,0.30818684,66282.0,66281.0,0.00525445]
[1729899911356,0.15087,66282.0,66281.0,0.00725445]
[1729899911816,0.30815984,66294.0,66293.0,0.00640145]
[1729899912079,0.150843,66294.0,66293.0,0.00640145]
[1729899912600,0.301632,66306.0,66305.0,0.00540145]
[1729899912834,0.001644,66307.0,66303.0,0.001]
[1729899912835,0.001644,66307.0,66306.0,0.00140145]
[1729899913056,0.001644,66307.0,66306.0,0.17684341]
[1729899913320,0.001644,66307.0,66306.0,0.33765841]
[1729899913549,0.001644,66307.0,66306.0,0.3366425]
[1729899913796,0.001644,66307.0,66306.0,0.3346425]
[1729899914276,0.22585429,66319.0,66306.0,0.3346425]
[1729899914277,0.22585429,66319.0,66312.0,0.16920345]
[1729899914518,0.22585429,66319.0,66312.0,0.63838264]
[1729899914751,0.22585429,66319.0,66312.0,0.63536725]
[1729899914940,0.22585429,66319.0,66318.0,0.16718945]
[1729899915221,0.22585429,66326.0,66318.0,0.16718945]
[1729899915222,0.22585429,66326.0,66325.0,0.15717345]
[1729899915455,0.22585429,66326.0,66325.0,0.30767726]
[1729899915671,0.22585429,66326.0,66325.0,0.15690526]
[1729899915891,0.67811929,66333.0,66332.0,0.00140145]
[1729899916118,0.83543613,66333.0,66332.0,0.00140145]
[1729899916349,0.452265,66333.0,66332.0,0.00140145]
[1729899917030,0.150787,66319.0,66318.0,0.00140145]
[1729899917254,0.150787,66319.0,66318.0,0.15190526]
[1729899917483,0.150787,66319.0,66318.0,0.00140145]
[1729899917715,0.150781,66321.0,66316.0,0.00140145]
[1729899917951,0.150806,66310.0,66309.0,0.00140145]
[1729899918377,0.150827,66301.0,66300.0,0.00140145]
[1729899918648,0.150823,66303.0,66302.0,0.00140145]
[1729899919093,0.150843,66294.0,66292.0,0.005]
[1729899919305,0.301677,66296.0,66292.0,0.15550381]
[1729899919541,0.45251,66297.0,66296.0,0.00140145]
[1729899919762,0.150851,66291.0,66289.0,0.005]
[1729899919982,0.301674,66297.0,66289.0,0.15550381]
[1729899920220,0.15085,66291.0,66289.0,0.15550381]
[1729899920674,0.150852,66290.0,66289.0,0.15690526]
[1729899920892,0.150852,66290.0,66289.0,0.00140145]
[1729899921115,0.150836,66297.0,66296.0,0.00140145]
[1729899921328,0.23906714,66299.0,66284.0,0.005]
[1729899921565,0.38989814,66299.0,66298.0,0.00140145]
[1729899921811,0.4094922,66299.0,66298.0,0.00140145]
[1729899922273,0.4094922,66299.0,66282.0,0.01]
[1729899922274,0.00026521,66296.0,66286.0,0.22585429]
[1729899922529,0.301659,66300.0,66288.0,0.150855]
[1729899922754,0.150848,66292.0,66288.0,0.15050381]
[1729899923020,0.00026521,66293.0,66288.0,0.15050381]
[1729899923021,0.150851,66291.0,66288.0,0.15050381]
[1729899923261,0.301668,66298.0,66288.0,0.15050381]
[1729899923505,0.00026521,66295.0,66288.0,0.15050381]
[1729899923763,0.00026521,66293.0,66288.0,0.15050381]
[1729899923996,0.15085,66291.0,66288.0,0.15050381]
[1729899924207,0.30193721,66297.0,66290.0,0.15085]
[1729899924208,0.150838,66297.0,66290.0,0.15085]
[1729899924434,0.150847,66292.0,66291.0,0.15050381]
[1729899924672,0.150842,66295.0,66291.0,0.15050381]
[1729899924944,0.22585429,66302.0,66293.0,0.150844]
[1729899925151,0.301656,66301.0,66294.0,0.00301648]
[1729899925386,0.22585429,66302.0,66294.0,0.15352029]
[1729899925846,0.150827,66301.0,66294.0,0.15050381]
[1729899926102,0.00526521,66307.0,66294.0,0.15050381]
[1729899926318,0.22585429,66302.0,66294.0,0.15050381]
[1729899926533,0.00026521,66307.0,66294.0,0.15050381]
[1729899926784,0.150837,66297.0,66291.0,0.00473479]
[1729899926990,0.301659,66300.0,66291.0,0.15050381]
[1729899927198,0.30165,66302.0,66292.0,0.00301663]
[1729899927412,0.150839,66296.0,66291.0,0.1552386]
[1729899927670,0.52750829,66301.0,66292.0,0.03110886]
[1729899927671,0.22585429,66301.0,66292.0,0.03110886]
[1729899928157,0.150838,66297.0,66291.0,0.1552386]
[1729899928380,0.30191221,66303.0,66292.0,0.15050381]
[1729899928627,0.005,66308.0,66292.0,0.15050381]
[1729899928628,0.22585429,66302.0,66292.0,0.15050381]
[1729899928846,0.22585429,66302.0,66295.0,0.15084]
[1729899929071,0.1508,66313.0,66305.0,0.150817]
[1729899929283,0.37666329,66309.0,66305.0,0.15050381]
[1729899929498,0.150812,66308.0,66305.0,0.15050381]
[1729899930203,0.53244129,66316.0,66305.0,0.15050381]
[1729899930204,0.2261195,66316.0,66305.0,0.15050381]
[1729899930426,0.150801,66313.0,66307.0,0.150812]
[1729899930648,0.00026521,66311.0,66306.0,0.0030159]
[1729899930876,0.22585429,66316.0,66305.0,0.15050381]
[1729899930877,0.150809,66309.0,66305.0,0.15050381]
[1729899931100,0.150805,66311.0,66305.0,0.30132081]
[1729899931328,0.30159,66315.0,66305.0,0.15050381]
[1729899931329,0.15081,66309.0,66305.0,0.15050381]
[1729899931786,0.00026521,66312.0,66305.0,0.15050381]
[1729899932014,0.150809,66309.0,66305.0,0.15050381]
[1729899932232,0.150811,66308.0,66305.0,0.15050381]
[1729899932709,0.00026521,66312.0,66305.0,0.15050381]
[1729899932710,0.150809,66309.0,66305.0,0.15050381]
[1729899932965,0.52744029,66316.0,66305.0,0.15050381]
[1729899933169,0.5277055,66316.0,66305.0,0.15132381]
[1729899933661,0.150787,66319.0,66306.0,0.51251349]
[1729899933875,0.00026521,66322.0,66306.0,0.21088249]
[1729899934128,0.22585429,66316.0,66313.0,0.150799]
[1729899934361,0.150787,66319.0,66314.0,0.15050381]
[1729899934843,0.00026521,66322.0,66314.0,0.15050381]
[1729899935065,0.301563,66321.0,66314.0,0.15050381]
[1729899935357,0.301572,66319.0,66308.0,0.00973479]
[1729899935574,0.301572,66319.0,66289.0,0.31516714]
[1729899935575,0.30682721,66322.0,66310.0,0.00473479]
[1729899935793,0.150793,66316.0,66311.0,0.15050381]
[1729899936014,0.301568,66320.0,66311.0,0.15050381]
[1729899936236,0.150802,66312.0,66311.0,0.15050381]
[1729899937126,0.301577,66318.0,66311.0,0.15050381]
[1729899937356,0.150794,66316.0,66311.0,0.15050381]
[1729899937627,0.22585429,66321.0,66311.0,0.15050381]
[1729899937628,0.301572,66319.0,66311.0,0.15050381]
[1729899937878,0.1508,66313.0,66311.0,0.15050381]
[1729899938417,0.00026521,66319.0,66311.0,0.15050381]
[1729899938675,0.1508,66313.0,66311.0,0.15050381]
[1729899939434,0.22585429,66312.0,66305.0,0.00082]
[1729899939662,0.15081,66309.0,66306.0,0.15050381]
[1729899939877,0.00026521,66315.0,66306.0,0.15050381]
[1729899940129,0.00026521,66319.0,66307.0,0.301627]
[1729899940359,0.00026521,66319.0,66312.0,0.150801]
[1729899940360,0.150787,66319.0,66312.0,0.150801]
[1729899940588,0.301547,66325.0,66313.0,0.15050381]
[1729899940834,0.22585429,66320.0,66315.0,0.150795]
[1729899941098,0.00026521,66322.0,66310.0,0.301613]
[1729899941099,0.15104421,66322.0,66316.0,0.15050381]
[1729899941333,0.37662929,66324.0,66317.0,0.01505038]
[1729899941583,0.00026521,66322.0,66295.0,0.00388795]
[1729899941853,0.46492143,66324.0,66274.0,0.06744328]
[1729899941854,0.15087,66282.0,66274.0,0.06744328]
[1729899942084,0.15587,66282.0,66274.0,0.06744328]
[1729899942324,0.15587,66282.0,66271.0,0.00558779]
[1729899942812,0.15087,66282.0,66271.0,0.000853]
[1729899943059,0.15087,66282.0,66271.0,0.00558779]
[1729899943331,0.15087,66282.0,66271.0,0.01058779]
[1729899943568,0.15087,66282.0,66271.0,0.005853]
[1729899943800,0.15087,66282.0,66272.0,0.150891]
[1729899944022,0.00026521,66283.0,66271.0,0.005853]
[1729899944270,0.00026521,66283.0,66274.0,0.150887]
[1729899944271,0.15113421,66283.0,66274.0,0.150887]
[1729899944504,0.15087,66282.0,66272.0,0.150892]
[1729899944735,0.15087,66282.0,66271.0,0.005853]
[1729899944736,0.15087,66282.0,66271.0,0.00558779]
[1729899944964,0.15087,66282.0,66271.0,0.15648279]
[1729899945190,0.15113421,66283.0,66271.0,0.01058779]
[1729899945417,0.23906714,66291.0,66282.0,0.15050381]
[1729899945908,0.22585429,66293.0,66283.0,0.00301693]
[1729899946132,0.15085,66291.0,66284.0,0.30136881]
[1729899946328,0.150853,66290.0,66284.0,0.15050381]
[1729899946611,0.54103035,66292.0,66284.0,0.15050381]
[1729899946904,0.150856,66289.0,66284.0,0.15050381]
[1729899947138,0.23906714,66292.0,66285.0,0.150862]
[1729899947397,0.23906714,66292.0,66286.0,0.15050381]
[1729899947398,0.00026521,66292.0,66286.0,0.15050381]
[1729899947609,0.22585429,66293.0,66286.0,0.15050381]
[1729899947856,0.301685,66295.0,66286.0,0.15050381]
[1729899948116,0.23906714,66297.0,66287.0,0.00301677]
[1729899948341,0.23906714,66297.0,66288.0,0.15050381]
[1729899948342,0.150849,66292.0,66288.0,0.15050381]
[1729899948556,0.301672,66297.0,66288.0,0.15050381]
[1729899948557,0.22585429,66293.0,66288.0,0.15050381]
[1729899948805,0.150851,66291.0,66288.0,0.15050381]
[1729899949020,0.19886521,66306.0,66289.0,0.03131036]
[1729899949278,0.22585429,66296.0,66292.0,0.150846]
[1729899949551,0.52750029,66303.0,66293.0,0.1535204]
[1729899949552,0.22585429,66303.0,66293.0,0.1535204]
[1729899949761,0.150831,66300.0,66294.0,0.02247295]
[1729899949987,0.22585429,66310.0,66295.0,0.4619196]
[1729899950209,0.22585429,66302.0,66297.0,0.00973479]
[1729899950437,0.2261195,66310.0,66298.0,0.15050381]
[1729899950438,0.46518664,66310.0,66298.0,0.15050381]
[1729899950741,0.301627,66307.0,66299.0,0.00301613]
[1729899950962,0.301627,66307.0,66300.0,0.15050381]
[1729899951173,0.150822,66303.0,66300.0,0.15050381]
[1729899951626,0.150817,66306.0,66300.0,0.15050381]
[1729899951848,0.150814,66307.0,66300.0,0.15050381]
[1729899952116,0.301622,66308.0,66300.0,0.15050381]
[1729899952323,0.150819,66305.0,66300.0,0.15050381]
[1729899952776,0.46518664,66310.0,66263.0,0.2717016]
[1729899952777,0.301659,66300.0,66289.0,0.00473479]
[1729899952999,0.301659,66300.0,66281.0,0.000853]
[1729899953000,0.306669,66298.0,66286.0,0.00473479]
[1729899953215,0.306669,66298.0,66287.0,0.15050381]
[1729899953216,0.23906714,66290.0,66287.0,0.15050381]
[1729899953453,0.150861,66286.0,66285.0,0.00473479]
[1729899953676,0.150868,66283.0,66282.0,0.15050381]
[1729899953900,0.23906714,66284.0,66282.0,0.15050381]
[1729899954124,0.38993314,66284.0,66282.0,0.15050381]
[1729899954343,0.23906714,66284.0,66282.0,0.15050381]
[1729899956440,0.38993314,66284.0,66282.0,0.15050381]
[1729899956853,0.23906714,66284.0,66282.0,0.15050381]
[1729899957102,0.150862,66286.0,66282.0,0.15050381]
[1729899957341,0.150856,66289.0,66282.0,0.15050381]
[1729899957559,0.23906714,66293.0,66282.0,0.15132381]
[1729899957775,0.37670729,66290.0,66284.0,0.150865]
[1729899957994,0.37670729,66290.0,66285.0,0.15050381]
[1729899958209,0.150855,66289.0,66285.0,0.15050381]
[1729899958660,0.150851,66291.0,66285.0,0.15050381]
[1729899959364,0.150851,66291.0,66285.0,0.30136681]
[1729899959605,0.06843026,66305.0,66285.0,0.30136681]
[1729899959606,0.1986,66297.0,66286.0,0.30473488]
[1729899959814,0.005,66300.0,66287.0,0.15050381]
[1729899959815,0.22585429,66295.0,66287.0,0.15050381]
[1729899960103,0.22585429,66295.0,66290.0,0.150851]
[1729899960322,0.22585429,66295.0,66291.0,0.15050381]
[1729899960564,0.005,66292.0,66279.0,0.00473479]
[1729899960785,0.23906714,66287.0,66282.0,0.15132381]
[1729899961043,0.23906714,66287.0,66282.0,0.00082]
[1729899961277,0.15613321,66283.0,66282.0,0.00082]
[1729899961522,0.20257381,66283.0,66282.0,0.00082]
[1729899961765,0.20256066,66283.0,66282.0,0.00082]
[1729899962021,0.150868,66283.0,66282.0,0.00082]
[1729899962290,0.04452684,66288.0,66282.0,0.00082]
[1729899962291,0.04452684,66293.0,66282.0,0.15132381]
[1729899962537,0.22585429,66295.0,66286.0,0.002]
[1729899962769,0.22585429,66288.0,66287.0,0.30437944]
[1729899962981,0.22585429,66295.0,66287.0,0.15050381]
[1729899963211,0.22585429,66295.0,66291.0,0.3017]
[1729899963437,0.22585429,66295.0,66292.0,0.15050381]
[1729899963674,0.22585429,66295.0,66281.0,0.000853]
[1729899963914,0.150868,66283.0,66281.0,0.000853]
[1729899964131,0.155868,66283.0,66281.0,0.000853]
[1729899964402,0.26399354,66283.0,66281.0,0.000853]
[1729899964645,0.26425875,66283.0,66281.0,0.000853]
[1729899964901,0.41476256,66283.0,66281.0,0.000853]
[1729899965123,0.65559416,66283.0,66281.0,0.000853]
[1729899965350,0.73480076,66283.0,66281.0,0.000853]
[1729899965580,0.65559416,66283.0,66281.0,0.000853]
[1729899966049,0.45384697,66283.0,66281.0,0.000853]
[1729899966271,0.3866996,66283.0,66281.0,0.000853]
[1729899966491,0.34053321,66283.0,66281.0,0.000853]
[1729899967162,0.38693574,66283.0,66281.0,0.000853]
[1729899967408,0.43152426,66283.0,66281.0,0.000853]
[1729899967632,0.51538418,66283.0,66281.0,0.000853]
[1729899967848,0.46898165,66283.0,66281.0,0.000853]
[1729899968324,0.77005854,66283.0,66281.0,0.000853]
[1729899968553,0.88150506,66283.0,66281.0,0.000853]
[1729899968781,0.7700063,66283.0,66281.0,0.000853]
[1729899969020,0.10486521,66282.0,66281.0,0.000853]
[1729899969246,0.58877852,66282.0,66281.0,0.000853]
[1729899969466,0.49765566,66282.0,66281.0,0.000853]
[1729899970205,0.39522535,66272.0,66271.0,0.000853]
[1729899970418,0.59212714,66272.0,66271.0,0.000853]
[1729899971109,0.44162333,66272.0,66271.0,0.000853]
[1729899971563,0.39522535,66272.0,66271.0,0.000853]
[1729899972994,0.64522535,66272.0,66271.0,0.000853]
[1729899973257,1.06799107,66272.0,66271.0,0.000853]
[1729899973503,1.10913678,66272.0,66271.0,0.000853]
[1729899973748,1.11413678,66272.0,66271.0,0.000853]
[1729899974206,0.46956583,66272.0,66271.0,0.000853]
[1729899974456,0.81744485,66272.0,66271.0,0.000853]
[1729899975455,0.84106587,66272.0,66271.0,0.000853]
[1729899975929,0.44677923,66272.0,66271.0,0.000853]
[1729899976153,0.17977923,66272.0,66271.0,0.000853]
[1729899976636,0.41884637,66272.0,66271.0,0.000853]
[1729899978023,0.17951402,66272.0,66271.0,0.000853]
[1729899978241,0.17977923,66272.0,66271.0,0.000853]
[1729899979162,0.3046046,66272.0,66271.0,0.000853]
[1729899979374,0.54367174,66272.0,66271.0,0.000853]
[1729899980323,0.02362102,66272.0,66271.0,0.000853]
[1729899980574,0.02362102,66272.0,66271.0,0.3119866]
[1729899980820,0.22585429,66278.0,66277.0,0.150881]
[1729899981048,0.22585429,66278.0,66277.0,0.30138481]
[1729899981277,0.02361479,66290.0,66284.0,0.150863]
[1729899981502,0.150861,66286.0,66278.0,0.15050381]
[1729899981721,0.15087,66282.0,66278.0,0.15050381]
[1729899982198,0.150851,66291.0,66285.0,0.150862]
[1729899982425,0.22585429,66284.0,66283.0,0.150868]
[1729899982644,0.150849,66292.0,66283.0,0.15050381]
[1729899982838,0.150851,66291.0,66285.0,0.150863]
[1729899983119,0.150851,66291.0,66285.0,0.30136681]
[1729899983332,0.22585429,66295.0,66286.0,0.15050381]
[1729899983803,0.2261195,66303.0,66289.0,0.150854]
[1729899984052,0.2261195,66303.0,66290.0,0.00473479]
[1729899984053,0.22585429,66296.0,66290.0,0.00473479]
[1729899984288,0.22585429,66296.0,66293.0,0.150843]
[1729899984537,0.22585429,66296.0,66294.0,0.15050381]
[1729899984744,0.02360911,66300.0,66294.0,0.15050381]
[1729899984957,0.02360911,66300.0,66297.0,0.150835]
[1729899985178,0.02360911,66300.0,66297.0,0.15352026]
[1729899985442,0.02360911,66300.0,66297.0,0.15050381]
[1729899985896,0.02360911,66300.0,66286.0,0.002]
[1729899986138,0.02360911,66300.0,66291.0,0.15050381]
[1729899986139,0.02860911,66300.0,66291.0,0.15050381]
[1729899986360,0.150837,66297.0,66291.0,0.15050381]
[1729899986804,0.02360911,66300.0,66291.0,0.15050381]
[1729899987024,0.22585429,66302.0,66292.0,0.04569526]
[1729899987250,0.15083,66300.0,66294.0,0.150842]
[1729899987483,0.22585429,66302.0,66295.0,0.15050381]
[1729899987484,0.150826,66302.0,66295.0,0.15050381]
[1729899987704,0.22585429,66301.0,66295.0,0.30134281]
[1729899988417,0.37668129,66301.0,66295.0,0.30134281]
[1729899988889,0.22585429,66301.0,66296.0,0.150838]
[1729899989122,0.22585429,66301.0,66297.0,0.15050381]
[1729899989564,0.150828,66301.0,66297.0,0.15050381]
[1729899990018,0.00026521,66303.0,66297.0,0.15050381]
[1729899990260,0.150832,66299.0,66297.0,0.15050381]
[1729899990743,0.301654,66301.0,66297.0,0.15050381]
[1729899990744,0.150829,66301.0,66297.0,0.15050381]
[1729899990960,0.00026521,66303.0,66297.0,0.15050381]
[1729899991212,0.150832,66299.0,66297.0,0.15050381]
[1729899991437,0.03085442,66302.0,66297.0,0.15050381]
[1729899991731,0.00026521,66303.0,66297.0,0.15050381]
[1729899991914,0.52750429,66302.0,66297.0,0.15050381]
[1729899992404,0.30165,66302.0,66297.0,0.15050381]
[1729899992844,0.150831,66300.0,66297.0,0.15050381]
[1729899993342,0.150831,66300.0,66293.0,0.150843]
[1729899993343,0.04527462,66299.0,66293.0,0.150843]
[1729899993585,0.301668,66298.0,66293.0,0.15050381]
[1729899993846,0.00664,66301.0,66293.0,0.15050381]
[1729899994057,0.00164,66301.0,66294.0,0.15050381]
[1729899994325,0.00164,66301.0,66295.0,0.301681]
[1729899994555,0.00164,66301.0,66300.0,0.31029522]
[1729899994775,0.00164,66305.0,66304.0,0.32002101]
[1729899995001,0.00164,66305.0,66304.0,0.47052482]
[1729899995253,0.00164,66305.0,66304.0,0.3130586]
[1729899996150,0.00164,66305.0,66304.0,0.3080586]
[1729899996377,0.00164,66305.0,66304.0,0.41258436]
[1729900000129,0.00164,66305.0,66304.0,0.3130586]
[1729900000607,0.00164,66305.0,66304.0,0.30132381]
[1729900001859,0.150822,66304.0,66298.0,0.150833]
[1729900002099,0.00164,66305.0,66300.0,0.301659]
[1729900002338,0.00164,66305.0,66300.0,0.15050381]
[1729900002548,0.150824,66303.0,66300.0,0.15050381]
[1729900002774,0.00164,66305.0,66300.0,0.15050381]
[1729900002775,0.301642,66304.0,66300.0,0.15050381]
[1729900003045,0.301642,66304.0,66287.0,0.002]
[1729900003046,0.301654,66301.0,66287.0,0.002]
[1729900003292,0.005,66302.0,66284.0,0.22585429]
[1729900003293,0.15083,66300.0,66293.0,0.00473479]
[1729900003528,0.005,66302.0,66295.0,0.15084]
[1729900003767,0.005,66302.0,66295.0,0.30134381]
[1729900004025,0.150828,66301.0,66295.0,0.30134381]
[1729900004234,0.00664,66305.0,66296.0,0.15050381]
[1729900004488,0.37667829,66303.0,66296.0,0.15050381]
[1729900004744,0.150824,66303.0,66297.0,0.150834]
[1729900004958,0.00164,66305.0,66298.0,0.30133581]
[1729900005188,0.00164,66305.0,66304.0,0.15082]
[1729900005436,0.00164,66305.0,66304.0,0.15050381]
[1729900007045,0.00164,66305.0,66304.0,0.30433995]
[1729900007275,0.00164,66305.0,66304.0,0.30132381]
[1729900008149,0.00164,66305.0,66304.0,0.30433959]
[1729900008380,0.00164,66305.0,66304.0,0.30132381]
[1729900008616,0.00164,66305.0,66304.0,0.3110586]
[1729900008860,0.00164,66305.0,66304.0,0.37253036]
[1729900009788,0.00164,66305.0,66304.0,0.37453036]
[1729900014080,0.00164,66305.0,66304.0,0.38580907]
[1729900015256,0.00164,66305.0,66304.0,0.40385501]
[1729900015474,0.00164,66305.0,66304.0,0.38580907]
[1729900015734,1e-08,66305.0,66304.0,0.38580907]
[1729900016003,0.00164,66313.0,66312.0,0.16253679]
[1729900016253,0.22585429,66324.0,66323.0,0.16251179]
[1729900016471,0.22585429,66324.0,66323.0,0.3130156]
[1729900016709,0.22585429,66331.0,66330.0,0.16049579]
[1729900016968,0.22585429,66331.0,66330.0,0.70940487]
[1729900017181,0.22585429,66331.0,66330.0,0.38955548]
[1729900017431,0.150716,66350.0,66332.0,0.16049079]
[1729900017680,0.30169421,66351.0,66332.0,0.3119946]
[1729900017681,0.00026521,66351.0,66332.0,0.3119946]
[1729900017886,0.37657229,66349.0,66332.0,0.3129946]